bitfinex/quotes_ETHUSD_20250611
["timestamp","ask_amount","ask_price","bid_price","bid_amount"]
[1749670524425,12.78734837,2808.2,2807.5,1.8697]
[1749670524723,0.769,2808.8,2807.5,2.05667]
[1749670524930,10.769,2808.8,2807.7,0.8211]
[1749670525092,0.769,2808.8,2807.7,0.8211]
[1749670525273,12.78734837,2808.6,2808.3,0.1776]
[1749670525477,0.1776,2808.5,2808.0,0.1776]
[1749670525684,12.78734837,2808.3,2808.0,0.1776]
[1749670527775,0.1776,2808.5,2808.0,0.1776]
[1749670528625,0.7523,2808.2,2808.0,0.1776]
[1749670528822,0.1776,2808.0,2807.4,0.1776]
[1749670529026,0.7523,2807.6,2806.9,1.092]
[1749670529227,12.78734837,2807.0,2806.4,0.8259]
[1749670529544,4.0496,2807.1,2806.5,0.1776]
[1749670530321,0.7523,2807.6,2806.4,1.01769]
[1749670530520,4.0496,2807.5,2806.9,0.1776]
[1749670531098,3.87,2807.4,2806.9,0.1776]
[1749670531310,0.1776,2807.5,2806.9,0.9869]
[1749670531637,3.869,2807.7,2807.3,0.1776]
[1749670531930,12.78734837,2807.5,2806.6,0.794]
[1749670532094,0.1776,2807.3,2806.8,0.1776]
[1749670533281,1.007,2807.3,2806.8,0.1776]
[1749670534413,0.1776,2807.3,2806.8,0.1776]
[1749670534939,4.6512,2807.9,2806.7,0.7899]
[1749670535139,0.1776,2808.1,2807.6,0.1776]
[1749670535448,0.9318,2808.4,2807.8,0.1776]
[1749670535743,0.1776,2808.4,2807.9,0.8247]
[1749670536338,0.1776,2808.4,2807.8,0.1776]
[1749670537036,12.78734837,2808.2,2807.8,0.1776]
[1749670537541,0.1776,2808.4,2807.8,0.1776]
[1749670540770,0.7542,2808.7,2807.8,0.20943]
[1749670540978,10.03732313,2808.4,2808.3,0.1776]
[1749670541126,1.3484,2807.7,2806.6,0.7896]
[1749670541330,1.3484,2807.7,2805.0,7.0712842]
[1749670541331,0.7613,2807.0,2805.9,0.7533]
[1749670541543,10.7613,2807.0,2805.9,0.7533]
[1749670542769,0.7613,2807.0,2806.0,1.076]
[1749670542975,0.7613,2807.0,2806.1,0.18293]
[1749670543634,10.03732313,2806.8,2806.1,0.18293]
[1749670543834,10.03732313,2806.8,2805.8,1.076]
[1749670544260,11.1188494,2807.0,2805.8,1.076]
[1749670546837,11.1188494,2807.0,2805.9,1.076]
[1749670547039,11.1188494,2807.0,2806.0,0.8143]
[1749670547253,1.1188494,2807.0,2806.0,0.8143]
[1749670547448,0.7995,2807.3,2806.1,0.18903]
[1749670547662,0.7995,2807.6,2806.2,0.8143]
[1749670547849,10.03732313,2807.4,2806.3,1.076]
[1749670548054,10.03732313,2807.4,2806.2,0.8143]
[1749670548242,10.03732313,2807.4,2806.3,1.076]
[1749670548453,10.03732313,2807.4,2806.3,1.26503]
[1749670548647,10.35818398,2807.5,2806.3,1.26503]
[1749670550192,10.7995,2807.6,2806.4,0.8037]
[1749670551053,0.1776,2807.3,2806.8,0.1776]
[1749670551790,0.1776,2807.3,2806.9,0.7511]
[1749670553497,0.1776,2807.3,2806.5,1.076]
[1749670553498,10.85392313,2807.3,2806.6,0.7987]
[1749670553655,0.1776,2807.1,2806.6,0.9763]
[1749670556904,0.1776,2807.6,2807.0,0.1776]
[1749670557467,0.1776,2807.6,2807.1,0.798]
[1749670559556,10.03732313,2807.5,2807.1,0.798]
[1749670559770,10.03732313,2807.5,2807.0,0.1776]
[1749670561803,10.03732313,2807.2,2806.8,0.8259]
[1749670562097,0.1776,2807.2,2806.7,1.2536]
[1749670562267,0.1776,2807.4,2806.9,0.9644]
[1749670562457,0.1776,2807.6,2807.1,0.1776]
[1749670562858,0.1776,2807.6,2806.9,0.7868]
[1749670562859,10.0,2807.5,2806.9,0.7868]
[1749670563058,0.1776,2807.2,2806.9,0.7868]
[1749670564060,12.78304252,2807.9,2806.9,0.99084]
[1749670564402,1.7967,2809.0,2808.0,0.7747]
[1749670564584,0.1776,2808.8,2808.1,1.076]
[1749670564794,12.96064252,2808.8,2808.3,0.1776]
[1749670567301,0.1776,2808.8,2808.3,0.1776]
[1749670567500,10.03293786,2808.7,2808.3,0.1776]
[1749670568998,10.03293786,2808.4,2808.0,1.8507]
[1749670569204,10.03293786,2808.4,2808.0,2.0283]
[1749670569578,10.03293786,2808.4,2808.0,0.9523]
[1749670570292,10.03293786,2808.1,2807.7,0.781]
[1749670570623,10.21053786,2807.8,2807.3,0.9586]
[1749670570993,0.1776,2807.8,2807.3,0.9586]
[1749670573019,0.8117,2808.6,2807.3,0.781]
[1749670573181,0.1776,2808.2,2807.7,0.1776]
[1749670573516,0.1776,2808.2,2807.8,0.8332]
[1749670574118,10.03293786,2808.1,2807.5,0.8152]
[1749670574284,10.03293786,2808.1,2807.5,0.9928]
[1749670574285,0.1776,2808.0,2807.5,0.9928]
[1749670575124,10.03293786,2807.8,2807.2,0.8152]
[1749670575318,10.03293786,2807.3,2806.9,0.1776]
[1749670575704,0.1776,2807.4,2806.9,0.1776]
[1749670577020,0.1776,2807.4,2807.0,3.56249887]
[1749670577226,0.8136,2808.4,2807.2,0.7539]
[1749670577514,0.1776,2808.7,2807.8,0.7539]
[1749670577714,0.1776,2808.7,2808.2,0.1776]
[1749670578016,10.03293786,2808.3,2807.8,0.7539]
[1749670578182,10.0,2808.2,2807.4,0.8189]
[1749670578378,10.03293786,2808.0,2807.4,0.8189]
[1749670578605,10.1776,2807.9,2807.4,0.9965]
[1749670578807,10.21053786,2807.6,2807.1,0.1776]
[1749670578996,0.1776,2807.6,2807.1,0.1776]
[1749670580024,0.1776,2807.4,2806.9,0.1776]
[1749670580527,10.03293786,2807.0,2806.5,0.8065]
[1749670580836,10.03293786,2807.0,2804.9,3.75053549]
[1749670580837,10.0,2806.6,2805.8,1.073]
[1749670580994,10.0,2806.6,2805.9,0.1776]
[1749670581206,10.0,2806.6,2805.8,1.073]
[1749670581524,10.0,2806.6,2806.2,0.1776]
[1749670583606,4.0276,2806.7,2806.2,0.1776]
[1749670583607,4.0276,2806.7,2806.2,1.0017]
[1749670583809,4.6371,2807.2,2806.2,0.8241]
[1749670584013,0.1776,2807.2,2806.7,0.1776]
[1749670584182,0.1776,2807.2,2806.7,1.0017]
[1749670584518,0.1776,2807.0,2806.4,1.0017]
[1749670584728,0.1776,2807.0,2806.4,1.20917]
[1749670585025,0.1776,2807.0,2806.4,1.0017]
[1749670585828,10.0,2806.8,2806.0,0.8241]
[1749670586123,10.81903786,2806.9,2806.0,0.8241]
[1749670586124,10.1776,2806.5,2806.0,2.0747]
[1749670586687,0.1776,2806.5,2806.0,2.0747]
[1749670586913,0.1776,2806.5,2806.0,2.28217]
[1749670587286,0.7861,2806.9,2806.0,2.10457]
[1749670587619,1.51501466,2808.1,2806.0,2.10457]
[1749670587620,0.1776,2807.0,2806.5,0.8241]
[1749670587927,0.1776,2807.0,2806.6,0.1776]
[1749670589913,0.1776,2807.3,2806.6,0.1776]
[1749670590685,0.1776,2807.3,2806.5,0.8241]
[1749670590891,0.1776,2807.3,2806.8,0.1776]
[1749670591842,10.0,2807.2,2806.8,0.1776]
[1749670592002,10.21053786,2807.0,2806.5,0.1776]
[1749670592894,0.7967,2806.8,2806.2,0.8015]
[1749670593198,0.1776,2806.7,2806.2,0.9791]
[1749670594331,14.5948,2807.2,2806.2,1.00681]
[1749670594638,0.1776,2807.0,2806.5,0.1776]
[1749670599493,0.1776,2807.0,2806.3,1.074]
[1749670599696,0.55,2806.8,2805.1,0.51]
[1749670599892,0.7863,2805.9,2805.0,0.8217]
[1749670600136,10.0,2805.6,2805.0,0.8217]
[1749670600338,10.0,2805.6,2804.5,0.8048]
[1749670601033,10.0,2805.6,2804.6,1.067]
[1749670601206,10.0,2805.6,2804.7,0.18718]
[1749670601607,10.0,2805.6,2804.8,1.067]
[1749670601814,0.7863,2805.9,2804.9,0.8048]
[1749670602246,3.842,2806.0,2804.9,3.56510158]
[1749670602406,3.842,2806.0,2804.8,1.067]
[1749670602407,0.8261,2806.2,2805.0,1.26801016]
[1749670602609,0.8261,2806.2,2805.0,0.8048]
[1749670602850,0.8034,2805.5,2804.3,1.068]
[1749670603146,10.03293786,2805.3,2804.3,1.068]
[1749670603333,10.0,2805.2,2804.2,1.41966667]
[1749670603507,10.0,2805.2,2804.3,1.068]
[1749670603706,10.0,2805.2,2804.3,1.31676667]
[1749670603914,10.0,2805.2,2804.3,0.24876667]
[1749670604336,10.0,2805.2,2804.4,1.068]
[1749670604508,10.0,2805.2,2804.5,1.068]
[1749670605971,10.8034,2805.5,2804.5,1.068]
[1749670606811,0.7726,2804.6,2804.2,0.66666667]
[1749670608952,10.0,2804.8,2804.2,0.66666667]
[1749670609111,0.8122,2805.2,2804.3,0.8214]
[1749670609540,0.9898,2805.2,2804.7,0.1776]
[1749670610221,0.1776,2805.2,2804.7,0.1776]
[1749670610816,11.3622,2804.7,2804.2,0.66666667]
[1749670611059,0.1776,2804.3,2804.2,0.66666667]
[1749670611467,14.6632,2804.7,2804.2,0.84426667]
[1749670611468,14.8408,2804.7,2804.2,0.84426667]
[1749670612470,10.9898,2804.7,2804.2,1.03549334]
[1749670612629,0.9898,2804.7,2804.2,0.84426667]
[1749670613064,0.1776,2804.7,2804.2,0.84426667]
[1749670613441,0.1776,2804.7,2804.3,0.8237]
[1749670613670,0.1776,2804.9,2804.4,0.1776]
[1749670614963,0.9473,2805.2,2804.7,0.1776]
[1749670615192,0.1776,2805.2,2804.7,0.1776]
[1749670616889,0.802,2805.5,2804.3,0.8237]
[1749670617080,0.1776,2805.4,2804.9,0.1776]
[1749670618497,0.7508,2805.8,2804.8,1.8605]
[1749670618669,0.1776,2805.6,2805.1,0.1776]
[1749670619005,0.1776,2806.0,2805.5,0.1776]
[1749670619780,0.1776,2806.2,2805.7,0.1776]
[1749670620584,10.03293786,2805.8,2804.9,0.7755]
[1749670620788,10.03293786,2805.1,2804.6,0.7755]
[1749670620998,10.03293786,2805.1,2804.3,0.7755]
[1749670621183,10.03293786,2805.1,2804.3,1.02651667]
[1749670621391,10.0,2805.3,2804.3,1.02651667]
[1749670621716,10.03293786,2805.4,2804.3,1.02651667]
[1749670622021,0.8261,2805.5,2804.6,0.7755]
[1749670622179,10.8261,2805.9,2804.6,0.7755]
[1749670622378,0.8261,2805.9,2804.7,1.068]
[1749670622681,0.8261,2805.9,2804.8,0.18435]
[1749670623007,10.03293786,2805.5,2804.6,0.7755]
[1749670623212,0.8261,2805.4,2804.7,1.068]
[1749670623910,0.8261,2805.4,2804.6,0.7755]
[1749670624110,10.03293786,2805.2,2804.4,1.068]
[1749670624298,10.8261,2805.4,2804.4,1.068]
[1749670624670,10.03293786,2805.2,2804.4,1.068]
[1749670625110,10.8261,2805.4,2804.3,0.8016]
[1749670625316,0.8261,2805.4,2804.4,1.57142837]
[1749670625605,0.7981,2805.7,2804.6,0.8016]
[1749670625809,10.7981,2805.7,2804.6,0.8016]
[1749670625982,0.7981,2806.2,2804.6,0.8016]
[1749670626184,0.7981,2806.2,2804.8,0.8016]
[1749670626415,4.6491,2806.2,2805.0,0.8016]
[1749670626830,14.68203786,2806.2,2805.0,0.8016]
[1749670627031,0.7981,2805.5,2804.9,1.068]
[1749670627330,10.0,2806.1,2804.9,1.068]
[1749670627331,0.7981,2805.8,2804.9,1.068]
[1749670627480,0.7981,2805.8,2804.9,1.25496]
[1749670627679,10.7981,2806.1,2804.9,1.25496]
[1749670627939,3.85,2806.0,2804.9,1.25496]
[1749670628477,3.85,2806.0,2804.9,1.068]
[1749670628478,10.03293786,2805.9,2804.9,1.068]
[1749670629111,10.7981,2806.1,2805.0,0.8204]
[1749670629699,10.03293786,2805.9,2805.0,0.8204]
[1749670630575,0.1776,2805.8,2805.3,0.1776]
[1749670631208,0.826,2805.7,2805.3,0.1776]
[1749670633326,0.1776,2805.8,2805.3,0.1776]
[1749670634019,14.66253786,2805.9,2805.0,0.1776]
[1749670634020,0.1776,2805.5,2805.0,0.1776]
[1749670637035,0.7806,2805.9,2804.9,1.07]
[1749670637251,0.1776,2805.8,2805.3,0.1776]
[1749670638501,0.1776,2805.8,2805.4,0.7628]
[1749670638730,0.9325,2806.2,2805.7,0.1776]
[1749670639308,10.8022,2806.1,2805.7,0.1776]
[1749670639537,10.8022,2806.1,2804.7,0.8226]
[1749670639538,10.03293786,2805.9,2804.7,1.8926]
[1749670639841,10.03293786,2805.9,2805.1,0.1776]
[1749670639842,0.8022,2805.6,2805.1,0.1776]
[1749670640938,0.1776,2805.7,2805.1,0.1776]
[1749670641323,0.1776,2805.7,2804.7,1.07]
[1749670641517,0.1776,2805.7,2805.4,0.1776]
[1749670642751,0.1776,2805.7,2804.3,8.508]
[1749670642752,0.1776,2805.7,2804.4,0.8226]
[1749670643055,0.1776,2805.7,2805.1,0.1776]
[1749670643424,10.0,2805.8,2804.9,0.8226]
[1749670643425,0.1776,2805.5,2804.9,1.8926]
[1749670643623,0.1776,2805.5,2805.0,0.1776]
[1749670644037,10.03293786,2805.3,2804.7,1.07]
[1749670644211,10.03293786,2804.9,2804.6,0.1776]
[1749670644411,0.9954,2804.7,2804.2,0.84426667]
[1749670644910,0.1776,2804.7,2804.2,0.84426667]
[1749670646956,0.8178,2804.9,2804.2,0.93937334]
[1749670647144,0.1776,2804.9,2804.4,0.1776]
[1749670647308,0.8021,2805.2,2804.2,0.93937334]
[1749670647517,0.1776,2805.1,2804.6,0.1776]
[1749670648249,10.8021,2805.2,2804.2,1.73766667]
[1749670648453,0.1776,2804.9,2804.4,0.1776]
[1749670649378,0.1776,2805.1,2804.6,0.1776]
[1749670650947,0.1776,2805.1,2804.7,0.7894]
[1749670652498,10.83793786,2805.0,2804.2,0.66666667]
[1749670652699,0.1776,2804.7,2804.3,0.7887]
[1749670653498,4.635,2805.3,2804.3,4.3545718]
[1749670653664,4.8126,2805.3,2804.6,0.1776]
[1749670654122,3.83,2805.9,2804.7,0.7887]
[1749670654289,0.786,2805.8,2804.7,0.7887]
[1749670654618,10.786,2805.8,2804.7,0.7887]
[1749670654820,10.03293786,2805.2,2804.7,0.7887]
[1749670655033,10.81893786,2805.2,2804.4,0.7945]
[1749670655188,10.81893786,2805.2,2804.4,1.04771667]
[1749670655990,0.812,2805.6,2804.4,1.04771667]
[1749670656206,0.812,2805.9,2805.0,3.56497469]
[1749670656526,0.812,2805.9,2804.4,0.25321667]
[1749670656527,0.812,2806.2,2805.2,0.813]
[1749670656723,10.812,2806.2,2805.2,0.813]
[1749670657286,10.03293786,2806.0,2805.2,0.813]
[1749670657494,3.83,2805.9,2805.2,0.813]
[1749670658223,0.812,2806.2,2805.2,0.813]
[1749670658997,0.812,2806.2,2805.2,1.884]
[1749670659196,0.812,2806.2,2805.2,0.813]
[1749670659395,10.03293786,2806.0,2805.2,0.813]
[1749670660397,10.81093786,2805.6,2804.5,0.8053]
[1749670660598,3.83,2805.5,2804.5,0.8053]
[1749670660825,4.608,2805.6,2804.6,0.8053]
[1749670661027,3.83,2805.6,2804.6,4.37080772]
[1749670661208,10.778,2805.8,2804.7,3.56542606]
[1749670661418,3.83,2805.7,2804.6,0.8053]
[1749670661804,3.83,2805.7,2804.7,0.45838826]
[1749670662420,3.83,2805.7,2804.8,0.7887]
[1749670662653,4.608,2805.8,2804.8,0.7887]
[1749670663541,3.829,2805.8,2805.0,0.7657]
[1749670663700,3.829,2805.8,2805.1,0.43308139]
[1749670663906,3.829,2805.8,2805.0,0.7657]
[1749670664111,4.0066,2805.8,2805.3,0.1776]
[1749670667207,16.8041024,2805.8,2805.3,0.1776]
[1749670668062,4.0066,2805.8,2805.3,0.1776]
[1749670670072,16.8041024,2805.8,2805.3,0.1776]
[1749670670384,16.8041024,2805.8,2805.0,0.9433]
[1749670670385,12.9751024,2805.5,2805.0,0.9433]
[1749670670588,0.1776,2805.5,2805.0,0.9433]
[1749670671876,10.0,2805.2,2804.7,0.7737]
[1749670672087,10.1776,2805.2,2804.7,0.1776]
[1749670672638,0.1776,2805.2,2804.7,0.1776]
[1749670673566,12.9751024,2805.2,2804.7,0.1776]
[1749670673765,0.1776,2804.8,2804.3,0.1776]
[1749670674003,0.1776,2804.6,2804.1,0.1776]
[1749670676124,0.8081,2805.1,2804.2,0.7986]
[1749670676348,0.1776,2805.1,2804.5,0.1776]
[1749670677324,0.1776,2805.1,2804.5,0.1276]
[1749670678696,0.8064,2805.4,2804.6,0.8156]
[1749670678908,10.984,2805.4,2804.9,0.1776]
[1749670679930,12.9751024,2805.2,2804.7,0.1776]
[1749670680141,10.0,2804.8,2804.5,0.1776]
[1749670680429,12.7975024,2804.5,2804.1,0.1776]
[1749670682045,0.1776,2804.6,2804.1,0.1776]
[1749670682246,3.829,2804.7,2804.3,0.1776]
[1749670682597,12.7975024,2804.5,2804.2,0.01345561]
[1749670682819,0.1776,2804.4,2803.9,0.1776]
[1749670683333,0.9517,2804.4,2804.3,0.01345513]
[1749670683635,14.1216024,2804.4,2804.3,0.01345513]
[1749670684243,17.9506024,2804.4,2804.3,0.01345513]
[1749670685707,18.31377428,2804.4,2804.3,0.01345513]
[1749670685942,13.93477428,2804.4,2804.3,0.01345513]
[1749670686117,27.76477428,2804.4,2804.3,0.01345513]
[1749670686316,27.76477428,2804.4,2803.1,3.56741397]
[1749670686317,0.4208,2804.0,2800.2,9.14307608]
[1749670686531,2.688,2801.8,2800.2,9.14307608]
[1749670686769,0.4208,2801.6,2800.5,0.7798]
[1749670686935,3.882,2801.5,2800.5,0.7798]
[1749670687273,4.23704834,2801.5,2800.5,0.7798]
[1749670687418,0.8057,2802.0,2800.5,0.7798]
[1749670687620,10.0,2801.9,2800.7,1.101]
[1749670688054,13.95475905,2802.0,2800.7,1.101]
[1749670688253,13.85475905,2802.0,2800.5,0.7798]
[1749670688482,12.7975024,2801.6,2800.7,1.101]
[1749670688817,12.7975024,2801.6,2800.5,0.7798]
[1749670689033,12.7975024,2801.6,2800.2,10.0]
[1749670689034,0.7057,2802.0,2800.6,1.101]
[1749670689281,3.931,2801.9,2801.2,0.7798]
[1749670689583,3.93,2801.9,2801.2,0.7798]
[1749670689933,3.929,2801.9,2801.2,0.7798]
[1749670690478,0.35925263,2802.2,2801.2,0.7798]
[1749670690646,3.928,2802.0,2801.2,0.7798]
[1749670691049,3.925,2802.0,2801.2,0.7798]
[1749670691646,14.00587619,2802.0,2801.2,0.7798]
[1749670691847,10.08087619,2801.7,2801.2,0.7798]
[1749670692140,0.36026655,2802.2,2801.2,0.7798]
[1749670692141,3.925,2801.8,2801.2,0.7798]
[1749670692345,3.925,2801.9,2801.2,0.7798]
[1749670692545,3.924,2801.9,2801.2,0.7798]
[1749670694272,10.08087619,2801.8,2800.8,1.101]
[1749670694476,10.08087619,2801.8,2801.0,0.804]
[1749670695690,3.923,2801.9,2801.0,0.804]
[1749670695886,14.00387619,2801.9,2801.0,0.804]
[1749670696766,3.92,2801.8,2801.0,0.804]
[1749670697166,0.8072,2802.3,2801.0,0.804]
[1749670697370,0.1784,2802.2,2801.7,0.1784]
[1749670697863,1.59313915,2802.7,2801.8,0.7841]
[1749670698109,0.1784,2802.7,2802.1,0.1784]
[1749670698413,0.1784,2802.7,2802.3,0.1784]
[1749670699824,3.919,2802.9,2802.3,0.1784]
[1749670700030,0.1776,2802.8,2802.3,0.1784]
[1749670700188,0.1776,2802.8,2802.4,0.827]
[1749670700530,0.7858,2803.1,2802.4,0.827]
[1749670700531,0.7858,2803.1,2802.7,0.827]
[1749670701222,0.7858,2803.1,2803.0,1.0046]
[1749670702187,0.1848427,2804.1,2803.0,1.0046]
[1749670702188,0.1848427,2804.1,2803.3,3.56714061]
[1749670702424,0.29585486,2804.1,2803.5,0.7884]
[1749670702695,0.29585486,2804.1,2803.6,0.7827]
[1749670702883,0.29585486,2804.1,2803.7,0.7827]
[1749670703123,1.15402762,2805.0,2803.7,0.7827]
[1749670703299,0.82643118,2804.9,2803.7,4.34938111]
[1749670703507,1.04171657,2805.2,2804.0,3.56630568]
[1749670703850,0.82640376,2805.1,2803.9,0.7827]
[1749670703987,0.82640376,2805.0,2803.9,0.7827]
[1749670704194,10.08087619,2804.7,2803.9,0.7827]
[1749670704827,21.30745161,2805.0,2803.9,0.7827]
[1749670705126,0.82637083,2804.9,2803.9,0.7827]
[1749670705331,0.82637083,2804.8,2803.9,0.7827]
[1749670705501,4.09685885,2805.0,2803.9,0.7827]
[1749670705702,11.46658609,2805.3,2804.2,0.7546]
[1749670705703,1.04171657,2805.3,2804.2,0.7546]
[1749670705888,0.32750335,2804.9,2804.2,0.7546]
[1749670706503,0.82656993,2805.2,2804.3,1.102]
[1749670706731,10.08087619,2805.3,2804.3,1.102]
[1749670706932,10.08087619,2804.7,2804.2,0.7546]
[1749670707318,10.08087619,2805.0,2804.2,0.7546]
[1749670707504,0.82670915,2804.9,2804.2,0.7546]
[1749670707722,0.8267045,2804.8,2804.2,0.7546]
[1749670707929,10.08087619,2805.0,2804.2,0.7546]
[1749670708101,0.82687316,2804.9,2804.2,0.7546]
[1749670708443,10.08087619,2805.0,2804.2,0.7546]
[1749670708594,0.82692553,2804.9,2804.2,0.7546]
[1749670708800,10.08087619,2805.0,2804.2,0.7546]
[1749670709050,0.82705563,2804.9,2804.2,0.7546]
[1749670709249,10.08087619,2805.0,2804.2,0.7546]
[1749670709447,0.82724735,2804.9,2804.2,0.7546]
[1749670709744,10.08087619,2805.0,2804.2,0.7546]
[1749670710033,0.82747819,2804.9,2804.2,0.7546]
[1749670710342,0.18483448,2805.4,2804.2,0.7546]
[1749670710500,4.93764003,2805.7,2804.4,4.38784424]
[1749670710696,10.82773474,2805.6,2804.4,5.18321135]
[1749670710902,0.82773474,2805.5,2804.4,5.18321135]
[1749670711128,1.81854003,2805.8,2804.4,5.18321135]
[1749670711129,10.0,2805.7,2804.4,5.18328827]
[1749670711442,0.82743136,2805.6,2804.5,0.51832883]
[1749670711622,4.87071138,2805.8,2804.6,1.101]
[1749670711935,0.82715469,2805.7,2804.6,1.101]
[1749670712151,10.96871138,2805.8,2804.7,4.34722977]
[1749670712354,0.82715421,2805.7,2804.7,1.68318461]
[1749670712566,0.1776,2805.6,2805.1,0.1776]
[1749670717248,10.08087619,2805.5,2805.1,0.1776]
[1749670717447,0.1776,2805.4,2804.9,0.1776]
[1749670718758,0.1776,2805.7,2805.2,0.1776]
[1749670719137,0.1776,2805.7,2805.3,0.8138]
[1749670719339,0.1776,2806.0,2805.5,0.1776]
[1749670720041,0.97774129,2806.4,2805.3,0.8138]
[1749670720363,0.1776,2806.3,2805.9,0.8138]
[1749670721143,0.1776,2806.5,2806.0,0.1776]
[1749670721358,10.25847619,2806.5,2806.0,0.1776]
[1749670721567,0.1776,2806.3,2805.8,0.1776]
[1749670722442,10.85467619,2806.2,2805.3,1.09]
[1749670722642,0.1776,2806.0,2805.5,0.1776]
[1749670725891,0.82847377,2805.9,2805.5,0.1776]
[1749670726098,1.03170925,2806.3,2805.6,0.8318]
[1749670726392,2.1794099,2806.5,2805.7,0.1776]
[1749670726393,1.00710415,2806.2,2805.7,0.1776]
[1749670726541,0.82950415,2806.1,2805.6,3.56429997]
[1749670726876,1.20930925,2806.9,2806.1,0.8318]
[1749670727039,1.15937767,2806.8,2806.5,0.1776]
[1749670727247,0.8309487,2806.7,2806.5,0.1776]
[1749670727582,0.83179967,2806.6,2806.5,0.1776]
[1749670727939,1.03170925,2807.1,2806.5,1.0094]
[1749670728139,0.83223626,2807.0,2806.9,0.1776]
[1749670728373,1.20930925,2807.4,2806.9,0.1776]
[1749670728578,1.86403486,2807.3,2806.9,0.1776]
[1749670728876,1.16098077,2807.2,2806.9,0.1776]
[1749670729095,0.83232561,2807.1,2806.9,0.1776]
[1749670729248,1.20930925,2807.4,2806.9,0.1776]
[1749670729447,1.86447621,2807.3,2807.0,0.7715]
[1749670729684,0.83276696,2807.2,2807.1,0.1776]
[1749670730340,1.03170925,2807.6,2807.1,0.1776]
[1749670730505,0.83338484,2807.5,2807.2,4.33369991]
[1749670730797,1.03170925,2807.9,2807.7,0.1776]
[1749670731092,0.83327907,2807.8,2807.2,0.7715]
[1749670731302,1.03170925,2807.9,2807.2,0.7715]
[1749670731303,0.83327907,2807.7,2807.3,0.7891]
[1749670731485,1.38509492,2807.9,2807.7,0.1776]
[1749670731685,2.26498061,2808.3,2807.8,0.7891]
[1749670731686,1.03170925,2808.0,2807.8,0.7891]
[1749670731845,0.83246583,2807.9,2807.8,0.7891]
[1749670732297,0.83246583,2807.9,2807.8,0.9667]
[1749670733253,0.35085971,2808.2,2807.8,1.41953664]
[1749670733487,0.83193228,2808.1,2807.8,4.80335659]
[1749670733700,1.38089684,2808.5,2807.8,4.80341669]
[1749670733953,0.83116331,2808.4,2808.0,0.1776]
[1749670734280,0.83116331,2808.3,2808.1,0.37389066]
[1749670734482,1.03170925,2808.6,2808.3,0.1776]
[1749670734669,0.83058014,2808.5,2808.3,0.1776]
[1749670734869,0.83058014,2808.4,2808.0,3.855]
[1749670735066,0.83058014,2808.3,2808.0,3.855]
[1749670735280,0.83058014,2808.2,2807.8,1.24193664]
[1749670735479,1.03170925,2808.5,2808.2,0.1776]
[1749670735656,0.83010524,2808.4,2808.2,0.1776]
[1749670735851,0.83010524,2808.3,2808.0,0.7869]
[1749670736078,0.83010524,2808.2,2808.0,0.7869]
[1749670736385,1.03170925,2808.8,2808.4,3.56073981]
[1749670736615,0.83029775,2808.7,2808.5,3.852]
[1749670736887,0.82945205,2808.6,2808.3,0.7869]
[1749670737092,1.03170925,2808.9,2808.6,0.1776]
[1749670737296,0.82943487,2808.8,2808.7,0.40286]
[1749670737495,0.82943487,2808.8,2808.7,1.18976]
[1749670737703,0.82943487,2808.8,2808.7,1.36736]
[1749670738868,0.82943487,2808.8,2808.7,4.927726]
[1749670739508,0.82943487,2808.8,2808.7,1.36736]
[1749670740715,0.82943487,2808.8,2808.7,5.8985]
[1749670741674,0.82943487,2808.8,2808.7,9.458866]
[1749670742215,0.82943487,2808.8,2808.7,5.8985]
[1749670743271,1.0,2809.0,2808.7,9.458866]
[1749670743509,1.0,2809.0,2808.8,4.925]
[1749670743706,1.0,2809.0,2808.9,5.1026]
[1749670744005,0.9,2809.0,2808.9,5.1026]
[1749670744603,1.03582686,2809.2,2809.1,0.7854]
[1749670744806,1.3857099,2809.5,2809.1,0.7854]
[1749670745111,1.3857099,2809.7,2809.1,0.7854]
[1749670745268,1.3857099,2809.7,2809.6,0.1776]
[1749670745472,1.3857099,2809.9,2809.6,0.1776]
[1749670745896,2.08738061,2810.1,2809.8,0.1776]
[1749670745897,1.3857099,2810.0,2809.8,0.1776]
[1749670746094,1.3857099,2810.0,2809.7,4.921]
[1749670746302,1.3857099,2810.0,2809.9,0.1776]
[1749670746504,0.68423024,2810.0,2809.9,0.1776]
[1749670746672,12.44233654,2810.0,2809.8,0.00336693]
[1749670746876,0.32919969,2809.9,2809.6,4.0086]
[1749670747073,1.38062795,2809.7,2809.6,4.0086]
[1749670747406,1.70982856,2809.7,2809.6,0.1776]
[1749670747585,0.8119,2809.7,2809.6,0.1776]
[1749670749128,2.08738061,2809.8,2809.6,0.1776]
[1749670749286,3.51145653,2811.1,2809.8,15.209785]
[1749670749616,0.35332019,2811.6,2810.2,0.55]
[1749670749823,10.04228976,2811.1,2810.1,0.7854]
[1749670749985,0.3294458,2811.0,2810.2,4.958]
[1749670750307,0.32945118,2810.9,2810.2,3.898]
[1749670750513,10.0,2811.0,2810.2,3.898]
[1749670750900,10.0,2811.0,2810.3,0.01862663]
[1749670751223,0.32942737,2810.9,2810.3,0.01862663]
[1749670751417,10.0,2811.0,2810.3,0.01862663]
[1749670752122,0.8119,2811.3,2810.2,4.956]
[1749670752276,0.8119,2811.3,2810.3,8.51125308]
[1749670752476,0.7936,2811.6,2810.5,4.36544379]
[1749670752697,0.7936,2811.6,2810.6,3.99439782]
[1749670753104,0.7936,2811.6,2810.6,0.43654438]
[1749670753276,0.7936,2811.9,2810.8,3.55762184]
[1749670753475,0.7936,2811.9,2811.0,0.8074]
[1749670753713,0.7936,2811.9,2811.1,1.06]